Cogmind - Beta 13 @@@ ROGUE MODE // 2024.04.07 @ 10:47:10 Player: Luca Result: Destroyed by G-47 Trooper with Particle Gun Performance ------------- Evolutions (2) 1000 Regions Visited (3) 600 Robots Destroyed (98) 490 Value Destroyed (2588) 2588 Prototype IDs (5) 100 Alien Tech Used (0) 0 Bonus (400) 400 TOTAL SCORE: 5178 Bonus ------- High Alert Combat Kills 400 Cogmind --------- Core Integrity 0/550 Matter 300/300 Energy 100/100 System Corruption 0% Temperature Cool (9) Movement Core (200) Ox3 Location -8/Materials Parts ------- > --- POWER (1) -------- (None) > --- PROPULSION (4) --- (None) > --- UTILITY (3) ------ Medium Storage Unit > --- WEAPON (3) ------- (None) > --- INVENTORY (10) --- Cooled Ion Engine Aluminum Leg Improved Aluminum Leg Sensor Array Transport Network Coupler Recoil Stabilizer Hacking Suite Datajack Plasma Cutter Peak State ------------ > --- POWER ------------ Cooled Ion Engine > --- PROPULSION ------- Improved Titanium Leg Improved Titanium Leg Improved Titanium Leg Improved Titanium Leg > --- UTILITY ---------- Medium Storage Unit Light Armor Plating Hardlight Generator > --- WEAPON ----------- EM Pulse Cannon Improved Light Cannon Heavy Rocket Launcher > --- INVENTORY -------- Cooled Ion Engine Aluminum Leg Improved Aluminum Leg Sensor Array Transport Network Coupler Recoil Stabilizer Hacking Suite Heavy Rocket Launcher Datajack Plasma Cutter [Rating: 35] Favorites ----------- Power Reinforced Ion Engine Engine Reinforced Ion Engine Propulsion Aluminum Leg Leg Aluminum Leg Utility Medium Storage Unit Device Sensor Array Storage Medium Storage Unit Hackware Hacking Suite Protection Hardened Light Armor Plating Weapon Improved Light Cannon Energy Gun Beam Rifle Energy Cannon Beam Cannon Ballistic Gun Assault Rifle Ballistic Cannon Improved Light Cannon Launcher Heavy Rocket Launcher Impact Weapon Heavy Hammer Slashing Weapon Mining Claw Build | -11 -10 -9 -8 ------- Run | Yrd Mat Mat Mat Slots Evolved 4 | . . 2 2 Power . | . . . . Propulsion 2 | . . 2 . Utility 1 | . . . 1 Weapon 1 | . . . 1 Parts Attached 110 | 6 34 60 10 Power 15 | 2 8 5 . Engine 15 | 2 8 5 . Core . | . . . . Reactor . | . . . . Propulsion 32 | 2 8 18 4 Treads . | . . . . Leg 32 | 2 8 18 4 Wheel . | . . . . Hover . | . . . . Flight . | . . . . Utility 24 | . 7 14 3 Device 10 | . 3 5 2 Storage 3 | . 1 2 . Processor . | . . . . Hackware 3 | . 2 1 . Protection 8 | . 1 6 1 Artifact . | . . . . Weapon 39 | 2 11 23 3 Energy Gun 5 | . 2 3 . Energy Cannon 14 | . 6 8 . Ballistic Gun 3 | 2 1 . . Ballistic Cannon 8 | . . 8 . Launcher 7 | . 2 3 2 Special Weapon . | . . . . Impact Weapon 1 | . . 1 . Slashing Weapon 1 | . . . 1 Piercing Weapon . | . . . . Special Melee Weapon . | . . . . Unidentified Prototypes . | . . . . Parts Lost 19 | . . 7 12 Power 1 | . . . 1 Propulsion 9 | . . 5 4 Utility 2 | . . . 2 Weapon 7 | . . 2 5 Highest Loss Streak 8 | . . 3 8 To Critical Strikes . | . . . . Average Slot Usage (%) 96 | . 95 98 85 Engine 11 | . 14 11 7 Leg 36 | . 27 42 31 Device 6 | . 8 4 7 Storage 8 | . 3 11 9 Hackware 4 | . 8 2 . Protection 3 | . 3 3 7 Energy Gun 1 | . 1 2 . Energy Cannon 13 | . 23 7 7 Ballistic Gun 1 | . 3 . . Ballistic Cannon 7 | . . 12 7 Naked Turns . | . . . . Heaviest Build 43 | 8 20 35 43 Greatest Support 80 | 20 20 43 80 Greatest Overweight (x) 5 | 1 . 1 5 Average Overweight (x) . | . . . . Largest Inventory Capacity 15 | 5 10 15 10 Average Capacity 8 | 5 6 10 10 Most Carried 11 | 2 10 11 10 Average Carried 8 | 1 5 9 9 Final Capacity 10 | 5 10 10 10 Final Carried 10 | 2 10 7 9 Class Distribution -------------------- 53% | Scavenger-Mutant 41% | Mutant 4% | Tank Dominant Class ---------------- Scavenger-Mutant | -10/Materials Scavenger-Mutant | -9/Materials Tank | -8/Materials Resources | -11 -10 -9 -8 ----------- Run | Yrd Mat Mat Mat Matter Collected 2141 | 254 538 1163 186 Remotely . | . . . . Salvage Created 3026 | 79 750 1865 332 Parts 184 | 3 50 114 17 Haulers Intercepted 7 | . 2 5 . Recyclers Shooed 1 | . 1 . . Parts Field Recycled . | . . . . Retrieved Matter . | . . . . Parts Self-Destructed . | . . . . Prevented . | . . . . Kills | -11 -10 -9 -8 ------- Run | Yrd Mat Mat Mat Combat Hostiles Destroyed 73 | . 17 42 14 Melee 2 | . . 1 1 Guns 5 | . 4 1 . Cannons 53 | . 12 36 5 AOE 10 | . 1 1 8 Classes Destroyed 13 | 1 6 5 1 Worker 3 | . 1 2 . Builder 3 | . . 3 . Hauler 7 | . 2 5 . Recycler 2 | 1 1 . . Operator 2 | . 1 . 1 Watcher 8 | . 3 5 . Swarmer 20 | . 6 7 7 Grunt 39 | . 11 22 6 Brawler 1 | . . 1 . Duelist 1 | . . 1 . Protector 1 | . . 1 . Sentry 10 | . . 10 . Specialist 1 | . . . 1 Best Kill Streak 12 | 1 3 9 12 Combat Bots Only 11 | . 3 8 11 Max Kills in Single Turn 4 | 1 2 2 4 Gunslinging . | . . . . Exploded 3 | . 1 1 3 Melee 1 | . . 1 1 Uniques/NPCs Destroyed . | . . . . Combat | -11 -10 -9 -8 -------- Run | Yrd Mat Mat Mat Hostile Shots Fired 399 | . 74 178 147 Missed 123 | . 24 47 52 Damage Taken 4166 | . 510 1878 1778 Core 971 | . 114 304 553 Absorbed by Shields . | . . . . Regen/Repaired (Parts) 281 | . 100 181 . Core Remaining (%) 59 | 100 54 24 . Volleys Fired 213 | 1 72 125 15 Largest 3 | 2 2 2 3 Hottest 141 | 40 120 126 141 Shots Fired 406 | 2 137 235 32 Gun 69 | 2 48 19 . Cannon 313 | . 80 207 26 Launcher 24 | . 9 9 6 Special . | . . . . Kinetic 175 | 2 39 121 13 Thermal 108 | . 89 19 . Explosive 24 | . 9 9 6 Electromagnetic 99 | . . 86 13 Robot Hit Streak 30 | 1 7 23 30 Robot Miss Streak 4 | . 4 3 1 Penetration Max . | . . . . Secondary Targets 2 | . 2 . . Max Gunslinging Chain 1 | . 1 . . Shots Hit Robots 233 | 1 63 152 17 Core Hits 118 | 1 32 60 25 Critical Kills . | . . . . Critical Parts Destroyed 1 | . . 1 . Critical Strikes 8 | . . 7 1 Burn 1 | . . 1 . Blast 4 | . . 3 1 Corrupt 2 | . . 2 . Smash 1 | . . 1 . Melee Attacks 15 | . . 13 2 Impact 13 | . . 13 . Slashing 2 | . . . 2 Piercing . | . . . . Sneak Attacks . | . . . . Combat Hostiles . | . . . . Follow-up Attacks . | . . . . Damage Inflicted 6198 | 15 1126 3874 1183 Guns 460 | 15 259 186 . Cannons 4087 | . 718 2990 379 Explosions 1293 | . 127 409 757 Melee 323 | . . 277 46 Ramming 35 | . 22 12 1 Kinetic 1821 | 15 205 1450 151 Thermal 1211 | . 772 354 85 Explosive 1028 | . 127 229 672 Electromagnetic 1780 | . . 1552 228 Impact 277 | . . 277 . Slashing 46 | . . . 46 Piercing . | . . . . Highest Corruption 2 | . . 2 . Average Corruption 2 | . . 2 . Corruption Purged . | . . . . Corruption Blocked . | . . . . Effects 19 | . . 19 . Message Errors 3 | . . 3 . Matter Fused 4 | . . 4 . Heat Flow Errors 3 | . . 3 . Energy Discharges 2 | . . 2 . Data Loss (minor) 4 | . . 4 . Data Loss (major) 3 | . . 3 . Overload Shots . | . . . . Overflow Damage 229 | . 10 175 44 Projectiles 82 | . 10 72 . Explosions 69 | . . 25 44 Melee 78 | . . 78 . Knockbacks 18 | . . 16 2 Impact 1 | . . 1 . Kinetic 15 | . . 14 1 Secondary 2 | . . 1 1 Self-Inflicted Damage 392 | . 30 230 132 Shots 11 | . 1 7 3 Rammed 2 | . . . 2 Targets Rammed 8 | . 4 2 2 Kicked 6 | . 4 2 . Crushed . | . . . . Highest Temperature 378 | . 180 378 231 Average Temperature 84 | . 55 91 79 Received Heat Transfer 1152 | . 156 663 333 Effects 9 | . . 9 . Shutdowns 1 | . . 1 . Energy Bleed 3 | . . 3 . Interference 4 | . . 4 . Damage (minor) 1 | . . 1 . Siege Activations . | . . . . Robots Corrupted 1 | . . 1 . Combat Hostiles 1 | . . 1 . Parts Fried 6 | . . 5 1 Impact Corruptions 2 | . . 2 . Robots Melted 1 | . . 1 . Combat Hostiles 1 | . . 1 . Parts Melted 5 | . 5 . . Heat Transferred 2596 | . 1642 854 100 Parts Sabotaged . | . . . . Parts Stolen . | . . . . Parts Stripped . | . . . . Power Chain Reactions 5 | . . 4 1 Alert | -11 -10 -9 -8 ------- Run | Yrd Mat Mat Mat Peak Influence 1084 | 5 317 1084 911 Initial 457 | . 3 32 457 Average 284 | 1 178 322 563 Maximum Alert Level 3 | . 1 3 3 Low Security (%) 61 | 100 76 59 . Level 1 14 | . 23 10 . Level 2 11 | . . 10 82 Level 3 12 | . . 20 17 Level 4 . | . . . . Level 5 . | . . . . High Security . | . . . . Max Security . | . . . . Squads Dispatched 18 | . 4 11 3 Investigation 8 | . 2 6 . Extermination . | . . . . Reinforcement 9 | . 2 4 3 Assault 1 | . . 1 . Garrison . | . . . . Intercept . | . . . . Searches Triggered . | . . . . Construction Impeded 2 | . . 1 1 Haulers Reinforced . | . . . . Active Scanning Responses . | . . . . Cargo Convoy Interrupts . | . . . . Stealth | -11 -10 -9 -8 --------- Run | Yrd Mat Mat Mat Distress Signals 7 | . 2 4 1 Communications Jammed . | . . . . Distress Signals . | . . . . Times Spotted 114 | . 30 61 23 Peak Tracking Total 9 | . 7 5 9 Tactical Retreats 11 | . 4 6 1 Traps | -11 -10 -9 -8 ------- Run | Yrd Mat Mat Mat Traps Triggered 4 | . 2 2 . Indirectly . | . . . . Trap Hack Attempts . | . . . . Triggered . | . . . . Disarmed . | . . . . Reprogrammed 4 | . . 4 . Reused . | . . . . Traps Extracted . | . . . . Installed . | . . . . Triggered . | . . . . Machines | -11 -10 -9 -8 ---------- Run | Yrd Mat Mat Mat Machines Disabled 11 | . 2 4 5 Max in Single Turn 2 | . 1 1 2 Machines Repaired . | . . . . Machines Dismantled . | . . . . Machines Sabotaged . | . . . . Overloaded Fab Kills . | . . . . Hacking | -11 -10 -9 -8 --------- Run | Yrd Mat Mat Mat Machines Accessed 24 | . 9 13 2 Terminals 15 | . 6 7 2 Fabricators . | . . . . Repair Stations 3 | . 1 2 . Recycling Units 4 | . 2 2 . Scanalyzers 2 | . . 2 . Garrison Access . | . . . . Total Hacks 87 | . 32 51 4 Successful 55 | . 18 33 4 Failed 32 | . 14 18 . Catastrophic 2 | . . 2 . Database Lockouts . | . . . . Manual . | . . . . Terminals 46 | . 18 24 4 Fabricators . | . . . . Repair Stations 13 | . 4 9 . Recycling Units 12 | . 10 2 . Scanalyzers 16 | . . 16 . Garrison Access . | . . . . Terminal Hacks 22 | . 8 10 4 Prototype ID Bank 3 | . 2 1 . Branch Access Points 2 | . . 1 1 Emergency Access Points 1 | . . 1 . Alert Level 4 | . 2 1 1 Locate Traps 4 | . 1 2 1 Reprogram Traps 1 | . . 1 . Transport Status 1 | . . 1 . Recall Investigation 1 | . 1 . . Hauler Manifests 1 | . . 1 . Zone Layout 4 | . 2 1 1 Fabricator Hacks . | . . . . Repair Station Hacks 10 | . 4 6 . Scan Component 5 | . 2 3 . Repair 5 | . 2 3 . Recycling Unit Hacks 8 | . 6 2 . Recycle Component 1 | . 1 . . Report Inventory 6 | . 4 2 . Retrieve Components 1 | . 1 . . Scanalyzer 15 | . . 15 . Insert Component 8 | . . 8 . Analyze 7 | . . 7 . Garrison Access Hacks . | . . . . Unauthorized Hacks . | . . . . Terminals . | . . . . Fabricators . | . . . . Repair Stations . | . . . . Recycling Units . | . . . . Scanalyzers . | . . . . Garrison Access . | . . . . Data Cores Recovered . | . . . . Used . | . . . . Hacking Detections 18 | . 7 10 1 Full Trace Events 8 | . 3 5 . Feedback Events . | . . . . Feedback Blocked . | . . . . Robot Schematics Acquired . | . . . . Robots Built . | . . . . Authchips . | . . . . Time . | . . . . Total Robot Build Rating . | . . . . Part Schematics Acquired 7 | . . 7 . Parts Built . | . . . . Authchips . | . . . . Time . | . . . . Total Part Build Rating . | . . . . Parts Repaired 5 | . 2 3 . Time 116 | . 52 64 . Parts Recycled 1 | . 1 . . Recycled Matter . | . . . . Retrieved Matter . | . . . . Retrieved Components 6 | . 6 . . Parts Scanalyzed 7 | . . 7 . Part Schematics Acquired 7 | . . 7 . Parts Damaged 1 | . . 1 . Bothacking | -11 -10 -9 -8 ------------ Run | Yrd Mat Mat Mat Used RIF Installer . | . . . . Robots Hacked . | . . . . Non-combat . | . . . . Combat . | . . . . Robot Hacks Applied . | . . . . Relay Couplers Released . | . . . . Fabnet Peak Effective % . | . . . . Robots Rewired . | . . . . Allies Hacked . | . . . . Hacks Repelled . | . . . . Allies | -11 -10 -9 -8 -------- Run | Yrd Mat Mat Mat Total Allies . | . . . . Largest Group . | . . . . Highest-Rated Group . | . . . . Highest-Rated Ally . | . . . . Total Orders . | . . . . Ally Attacks . | . . . . Total Damage . | . . . . Kills . | . . . . Allies Corrupted . | . . . . Allies Melted . | . . . . Intel | -11 -10 -9 -8 ------- Run | Yrd Mat Mat Mat Robot Analysis Total . | . . . . Derelict Logs Recovered . | . . . . Drone Launches . | . . . . Drone Recoveries . | . . . . Exploration | -11 -10 -9 -8 ------------- Run | Yrd Mat Mat Mat Turns Passed 6807 | 59 2459 3829 460 Spaces Moved 4095 | 37 1638 2169 251 Core 15 | 5 . . 10 Treads . | . . . . Legs 4080 | 32 1638 2169 241 Wheels . | . . . . Hover . | . . . . Flight . | . . . . Fastest Speed 50 | 50 120 120 120 Average Speed 121 | 114 120 122 131 Slowest Speed 300 | 120 120 190 300 Overloaded Moves . | . . . . Propulsion Burnouts . | . . . . Robots Hopped . | . . . . Cave-ins Triggered . | . . . . Exploration Rate (%) 56 | 4 96 98 26 Regions Visited 3 Branch Regions . Pre-discovered Areas . | . . . . Known Exits Taken . | . . . . Unknown Exits Taken 3 | 1 1 1 . Scrap Searched . | . . . . Spaces Dug 29 | . . . 29 Terrain Destroyed 194 | . 48 81 65 Melee . | . . . . Projectile 9 | . . 8 1 AOE 185 | . 48 73 64 Terrain Rammed . | . . . . Walls Destroyed . | . . . . Machines Disabled . | . . . . Actions | -11 -10 -9 -8 --------- Run | Yrd Mat Mat Mat Total 5480 | 49 2001 3088 342 Wait 921 | 2 201 664 54 Move 4092 | 36 1637 2168 251 Hop . | . . . . Pick Up 50 | 3 21 22 4 Fast Attach 33 | 5 13 12 3 Attach 14 | . 2 9 3 Detach 9 | . 5 3 1 Swap 63 | 1 19 39 4 Drop 62 | 1 27 31 3 Fire 213 | 1 72 125 15 Melee 15 | . . 13 2 Ram 2 | . . . 2 Kick 6 | . 4 2 . Crush . | . . . . Escape Stasis . | . . . . Rewire . | . . . . Trap . | . . . . Miscellaneous . | . . . . Route ------- -11/Scrapyard -10/Materials (discovered 5 exits: *Mat x3 / [*Min] / [*Sub]) -9/Materials (discovered 7 exits: *Mat x3 / *Min x2 / *Sto x2) -8/Materials History --------- Turn | Location | Event 31 | -11/Scrapyard | Discovered new exit (range 15) 60 | -11/Scrapyard | Entered Materials 178 | -10/Materials | Repaired Aluminum Leg 268 | -10/Materials | Discovered new exit (range 13) 303 | -10/Materials | Build established: Mutant 390 | -10/Materials | Discovered new exit (range 8) 661 | -10/Materials | Build established: Scavenger-Mutant 709 | -10/Materials | Discovered new exit (range 14) 1206 | -10/Materials | Discovered new exit (range 9) 1620 | -10/Materials | Repaired Beam Cannon 1973 | -10/Materials | Build established: Mutant 1995 | -10/Materials | Discovered new exit (range 7) 2519 | -10/Materials | Entered another Materials area 2519 | -9/Materials | Evolved 2 slots: Propulsion x2 3039 | -9/Materials | Build established: Scavenger-Mutant 3353 | -9/Materials | Build established: Mutant 3488 | -9/Materials | Identified exit to Mines 3488 | -9/Materials | Identified exit to Storage 3857 | -9/Materials | Repaired Imp. Light Cannon 3932 | -9/Materials | Build established: Scavenger-Mutant 4185 | -9/Materials | Discovered new exit (range 5) 5096 | -9/Materials | Discovered new exit (range 16) 5496 | -9/Materials | Build established: Mutant 5579 | -9/Materials | Destroyed 8 combat bots 5820 | -9/Materials | Discovered new exit (range 8) 5880 | -9/Materials | Core integrity fell below 50% 5949 | -9/Materials | Repaired Aluminum Leg 5970 | -9/Materials | Repaired EM Pulse Cannon 6067 | -9/Materials | Build established: Scavenger-Mutant 6119 | -9/Materials | First assault squad dispatched 6196 | -9/Materials | Lost 3 parts (1n2w) 6348 | -9/Materials | Entered another Materials area 6348 | -8/Materials | Evolved 2 slots: Utility x1, Weapon x1 6684 | -8/Materials | Build established: Tank 6751 | -8/Materials | Destroyed 11 combat bots 6774 | -8/Materials | Lost 8 parts (1p2n1u4w) 6789 | -8/Materials | Core integrity fell below 50% 6795 | -8/Materials | Core integrity fell below 20% 6808 | -8/Materials | Destroyed by G-47 Trooper with Particle Gun Last Messages --------------- 06755_ U-05 Engineer builds a Wall. 06764_ Acquired Unknown Slashing Weapon. 06764_ Identified Mining Claw. 06776_ G-47 Trooper destroyed. 06776_ Critical hit (Burn: +37). 06778_ X-57 Shotgunner destroyed. 06782_ Neutrino Reactor explodes. 06782_ Imp. Titanium Leg destroyed. 06782_ Door malfunctions. 06783_ Imp. Titanium Leg destroyed. 06784_ Mining Claw destroyed. 06784_ Knocked back. 06784_ Hardlight Generator destroyed. 06785_ R-06 Scavenger collects Aluminum Leg. 06789_ Slammed into G-47 Trooper. 06789_ Knocked back. 06791_ R-06 Scavenger collects Corrupted Aluminum Leg. 06791_ Penetrated by Slug. 06791_ Knocked back. 06793_ Slammed into G-47 Trooper. Map ----- +----------------------------------------------------+ | ?????????????????????????????????????????????????? | | ?????????????????????????????????????????????????? | | ?????????????????????????????????????????????????? | | ?????????????????????????????????????????????????? | | ?????????????????????????????????????????????????? | | ?????????????????????????????????????????????????? | | ?????????????????????????????????????????????????? | | ?????????????????????????????????????????????????? | | ?????????????????????????????????????????????????? | | ?????????????????????????????????????????????????? | | ?????????????????????????????????????????????????? | | ?????????????????????????????????????????????????? | | ???????????????????????? ????????????????????????? | | ???????????????????????# ????????????????????????? | | ???????????????????????# ????????????????????????? | | ???????????????????????# ????????????????????????? | | ???????????????????????# ????????????????????????? | | ???????????????????????# ????????????????????????? | | ???????????????????????# ????????????????????????? | | ??????????????????????## ##??????????????????????? | | ??????????????????????# w ??????????????????????? | | ??????????????????????# ??????????????????????? | | ??????????????????????# ??????????????????????? | | ??????????????????????# #??????????????????????? | | ???????????^^^????????# #??????????????????????? | | ??????????????????????# @#??????????????????????? | | ???????????? ?######### #??########????????????? | | ??????????# | g#### %% #????????????? | | ??????????# H/%% #????????????? | | ??????????# ### %% #????????????? | | ??????????# " """"" #??# #??????? ??? | | ??????????# """"""""" #### #??????# ??? | | ??????????# """ """ # #?#?#### ??? | | ??????????# ## # # ### ## #?? | | ??????????# ## #?? | | ??????????# % T ## #?? | | ??????????# % ## #?? | | ??????????# #"="##+########## ## #?? | | ??????????+ % k# " = #???# ### #?? | | ??????????# # = ??# #?# #?? | | ??????????# ## ## * ??# #?# #?? | | ??????????# ?# #??# #?# #?? | | ??????????# ?# ??# #?# #?? | | ?????????## # % = ??# #?# #?? | | ????###### % ! % ???# ### ##? | | ? % ##### ## | | ? % # + % | | ? "" ############## ## | | ???####### ! " #?????????#####+##### #? | | ?????????## ## """ #?????????# ! [ # #? | +----------------------------------------------------+ Best States ------------- Heat Dissipation 35 Energy Generation 14 Energy Capacity 280 Matter Stores 300 Matter Capacity 300 Sight Range 16 Robot Scan Range 14 Terrain Scan Density 10 Armor Coverage 150 Propulsion Shielding 33 Evasion (%) 55 Offensive Hacking 10 Item Schematics ----------------- Hacking Suite | -9/Materials | Scanalyzed Imp. Light Cannon | -9/Materials | Scanalyzed Transport Network Coupler | -9/Materials | Scanalyzed Grenade Launcher | -9/Materials | Scanalyzed Rnf. Ion Engine | -9/Materials | Scanalyzed Sensor Array | -9/Materials | Scanalyzed Propulsion Shielding | -9/Materials | Scanalyzed Robot Schematics ------------------ None Fabricated ------------ Nothing Alien Tech Used ----------------- None Achievements -------------- None Challenges ------------ None Game ------ Seed DerelictLatentSword Manual? 0 Play Time 01:45:20 Cumulative 22.9 hours Start 2024.04.07 @ 09:00:53 End 2024.04.07 @ 10:47:10 Sessions 1 Manual Loads 0 Difficulty Rogue Special Mode None Game No. 12 Rogue 12 Adventurer 0 Explorer 0 Win Type - Total 0 Types 0/0/0/0/0/0/0/0/0 Lore% 6 Gallery% 18 Achievement% 15 Wizard Run 0 Options --------- Layout 0 ASCII 1 Keyboard 1 Movement Numpad Keybinds 0 Fullscreen 2 Font 18/Terminus Map View 76x50 Zoom Use 0% Tactical HUD 1 Map Filters NONE Filters NONE Steam 1 RUN: ba6679a3-cc86-4393-af43-ca1f970eee2d